bitfinex-derivatives/quotes_BTCF0:USTF0_20251204
["timestamp","ask_amount","ask_price","bid_price","bid_amount"]
[1764865250377,0.07285,93146.0,93145.0,0.09294043]
[1764865251283,0.07285,93146.0,93145.0,0.01343653]
[1764865251476,0.07285,93146.0,93145.0,0.003]
[1764865253983,0.07285,93146.0,93145.0,0.07177]
[1764865254285,0.07285,93146.0,93145.0,0.003]
[1764865259592,0.07285,93146.0,93145.0,0.08220653]
[1764865260176,0.07285,93146.0,93145.0,0.01343653]
[1764865260788,0.07285,93146.0,93145.0,0.003]
[1764865260989,0.07285,93146.0,93145.0,0.08220653]
[1764865260990,0.03631,93146.0,93145.0,0.08220653]
[1764865261182,0.06978,93146.0,93145.0,0.08220653]
[1764865263587,0.06755068,93152.0,93151.0,0.06877]
[1764865263788,0.06755068,93152.0,93151.0,0.07119002]
[1764865263993,0.06755068,93152.0,93151.0,0.08192332]
[1764865264592,0.06755068,93152.0,93151.0,0.07920653]
[1764865264888,0.0776238,93146.0,93145.0,0.002]
[1764865265080,0.0776252,93134.0,93133.0,0.00016102]
[1764865266278,0.0776252,93134.0,93133.0,0.00816102]
[1764865267384,0.0776252,93134.0,93133.0,0.01016102]
[1764865267588,0.0776268,93120.0,93119.0,0.00011235]
[1764865267785,0.06689,93103.0,93098.0,0.05701148]
[1764865267992,0.08656,93087.0,93086.0,0.00026857]
[1764865268191,0.06689,93087.0,93086.0,0.06889859]
[1764865268497,0.05774815,93087.0,93086.0,0.07933512]
[1764865268990,0.05785192,93087.0,93086.0,0.07933512]
[1764865269695,0.05785192,93087.0,93086.0,0.08233512]
[1764865269898,0.08954192,93087.0,93086.0,0.08233512]
[1764865270098,0.08954192,93087.0,93086.0,0.0137051]
[1764865270394,0.06699377,93087.0,93086.0,0.0819151]
[1764865271097,0.03530377,93087.0,93086.0,0.0799151]
[1764865271894,0.06699377,93087.0,93086.0,0.0799151]
[1764865272099,0.06699377,93087.0,93086.0,0.0127051]
[1764865272597,0.06699377,93087.0,93086.0,0.0107051]
[1764865272799,0.06699377,93087.0,93086.0,0.0147051]
[1764865273589,0.06699377,93087.0,93086.0,0.0127051]
[1764865274393,0.06799377,93087.0,93086.0,0.0107051]
[1764865274599,0.07499377,93087.0,93086.0,0.0117051]
[1764865275097,0.07599377,93087.0,93086.0,0.0117051]
[1764865275700,0.08473437,93087.0,93086.0,0.0117051]
[1764865276497,0.07399377,93087.0,93086.0,0.0779151]
[1764865276696,0.07299377,93087.0,93086.0,0.0779151]
[1764865277100,0.06699377,93087.0,93086.0,0.0769151]
[1764865277297,0.07299377,93087.0,93086.0,0.0117051]
[1764865277599,0.07399377,93087.0,93086.0,0.0117051]
[1764865277796,0.06799377,93087.0,93086.0,0.0107051]
[1764865278101,0.07399377,93087.0,93086.0,0.0779151]
[1764865278796,0.00710377,93087.0,93086.0,0.0779151]
[1764865279000,0.00610377,93087.0,93086.0,0.0779151]
[1764865279198,0.06689,93106.0,93105.0,0.06621]
[1764865279592,0.06689,93106.0,93105.0,0.03524]
[1764865280297,0.06689,93106.0,93105.0,0.06621]
[1764865280505,0.06689,93100.0,93099.0,0.0459793]
[1764865281004,0.06689,93100.0,93099.0,0.0769493]
[1764865281496,0.0107389,93103.0,93102.0,0.06621]
[1764865281692,0.0519385,93106.0,93105.0,0.06621]
[1764865281894,0.00016089,93115.0,93114.0,0.0769475]
[1764865282100,0.00016089,93115.0,93114.0,0.07936752]
[1764865282403,0.06705089,93115.0,93114.0,0.03766002]
[1764865282597,0.06689,93109.0,93108.0,0.0107382]
[1764865282902,0.06689,93106.0,93105.0,0.03524]
[1764865283099,0.06689,93100.0,93099.0,0.0769493]
[1764865283300,0.06689,93097.0,93096.0,0.00016112]
[1764865283491,0.06689,93097.0,93096.0,0.07953074]
[1764865283696,0.06889,93103.0,93102.0,0.06621]
[1764865283898,0.06889,93103.0,93102.0,0.00242002]
[1764865284092,0.06689,93103.0,93102.0,0.00242002]
[1764865284398,0.06689,93103.0,93102.0,0.06863002]
[1764865285006,0.06689,93103.0,93102.0,0.06963002]
[1764865285400,0.0424278,93112.0,93111.0,0.0459779]
[1764865285704,0.06689,93112.0,93111.0,0.0769479]
[1764865286099,0.00016089,93115.0,93114.0,0.0769475]
[1764865286299,0.06705089,93115.0,93114.0,0.07936752]
[1764865287504,0.00016089,93115.0,93114.0,0.07936752]
[1764865287697,0.00016089,93115.0,93114.0,0.08336752]
[1764865288307,0.00016089,93115.0,93114.0,0.08536752]
[1764865289210,0.00016089,93115.0,93114.0,0.08636752]
[1764865289810,0.00016089,93115.0,93114.0,0.08736752]
[1764865295713,0.01967,93159.0,93133.0,0.0732149]
[1764865295714,0.03176,93134.0,93133.0,0.0732149]
[1764865296111,0.0107346,93140.0,93138.0,0.0107348]
[1764865296315,0.02276192,93139.0,93138.0,0.07563482]
[1764865296518,0.0723437,93148.0,93147.0,0.0732137]
[1764865296812,0.09510417,93148.0,93147.0,0.0732137]
[1764865297215,0.0107341,93145.0,93144.0,0.043204]
[1764865297511,0.0107341,93145.0,93139.0,0.01082927]
[1764865297512,0.0723443,93142.0,93141.0,0.0107344]
[1764865297718,0.0723447,93139.0,93138.0,0.03263103]
[1764865297915,0.09510092,93139.0,93138.0,0.00016103]
[1764865298115,0.0723472,93117.0,93116.0,0.06248]
[1764865298415,0.0107358,93129.0,93117.0,0.0107372]
[1764865298714,0.06161,93118.0,93117.0,0.0732172]
[1764865299412,0.0723472,93117.0,93116.0,0.002]
[1764865299819,0.0723481,93109.0,93108.0,0.00016103]
[1764865300213,0.0723481,93109.0,93108.0,0.03263103]
[1764865300416,0.15895604,93109.0,93108.0,0.00016103]
[1764865300619,0.0723495,93097.0,93096.0,0.01109904]
[1764865300819,0.06161,93087.0,93086.0,0.01100927]
[1764865301018,0.06161,93087.0,93086.0,0.01141799]
[1764865301318,0.06161,93087.0,93086.0,0.00026857]
[1764865301623,0.08438473,93087.0,93086.0,0.00026857]
[1764865302518,0.08438473,93087.0,93086.0,0.06287859]
[1764865302818,0.08738473,93087.0,93086.0,0.00026857]
[1764865304226,0.08738473,93087.0,93077.0,0.00016111]
[1764865304227,0.0689517,93078.0,93077.0,0.00016111]
[1764865304428,0.03031,93050.0,93049.0,0.070935]
[1764865304621,0.0107433,93065.0,93049.0,0.029225]
[1764865304821,0.0689533,93065.0,93064.0,0.03088]
[1764865305026,0.09173499,93065.0,93064.0,0.03088]
[1764865305417,0.05821,93061.0,93060.0,0.0107438]
[1764865305617,0.03031,93061.0,93060.0,0.0709338]
[1764865305818,0.05821,93068.0,93067.0,0.0107429]
[1764865306019,0.05821,93065.0,93064.0,0.03288]
[1764865306327,0.05821,93065.0,93064.0,0.07019]
[1764865306328,0.001,93065.0,93064.0,0.07019]
[1764865306722,0.05821,93072.0,93071.0,0.0709325]
[1764865307129,0.05821,93071.0,93070.0,0.0709325]
[1764865308322,0.05821,93071.0,93070.0,0.0436225]
[1764865308824,0.07616,93071.0,93070.0,0.002]
[1764865309129,0.07616,93071.0,93070.0,0.008]
[1764865312334,0.07616,93071.0,93055.0,0.0310412]
[1764865312335,0.0689542,93056.0,93055.0,0.0310412]
[1764865312637,0.0689542,93056.0,93055.0,0.07395138]
[1764865313133,0.05821,93056.0,93055.0,0.07395138]
[1764865313835,0.05921,93056.0,93055.0,0.08395138]
[1764865314137,0.05921,93056.0,93055.0,0.08695138]
[1764865314530,0.05921,93056.0,93055.0,0.01558122]
[1764865314729,0.05921,93056.0,93055.0,0.0131612]
[1764865314934,0.05921,93056.0,93020.0,0.22636053]
[1764865314935,0.0689553,93047.0,93041.0,0.01098883]
[1764865315238,0.05821,93047.0,93046.0,0.06287871]
[1764865315428,0.03031,93047.0,93046.0,0.06287871]
[1764865315628,0.05821,93047.0,93046.0,0.06287871]
[1764865316328,0.05821,93047.0,93046.0,0.07187871]
[1764865316535,0.05921,93047.0,93046.0,0.07187871]
[1764865317032,0.05921,93047.0,93046.0,0.07487871]
[1764865320228,0.001,93047.0,93046.0,0.07487871]
[1764865320632,0.05921,93047.0,93046.0,0.07487871]
[1764865320838,0.05921,93047.0,93046.0,0.01468871]
[1764865321042,0.05921,93047.0,93046.0,0.01226869]
[1764865321538,0.05921,93047.0,93046.0,0.07245869]
[1764865321741,0.001,93047.0,93046.0,0.07245869]
[1764865322529,0.0107445,93054.0,93053.0,0.06019]
[1764865322530,0.0689545,93054.0,93053.0,0.06019]
[1764865322735,0.0689545,93054.0,93053.0,0.06261002]
[1764865323240,0.05790759,93078.0,93053.0,0.46261002]
[1764865323443,0.01795,93096.0,93083.0,0.06019]
[1764865323643,0.01795,93096.0,93069.0,0.01446]
[1764865323644,0.05657,93079.0,93069.0,0.01446]
[1764865323941,0.0107433,93065.0,93060.0,0.0107437]
[1764865324151,0.05657,93061.0,93060.0,0.0405837]
[1764865324335,0.05657,93061.0,93060.0,0.0703437]
[1764865325141,0.05657,93061.0,93060.0,0.0107437]
[1764865325342,0.05657,93054.0,93053.0,0.002]
[1764865325732,0.05657,93054.0,93052.0,0.0107446]
[1764865325938,0.05657,93053.0,93052.0,0.0703446]
[1764865326645,0.05657,93053.0,93052.0,0.0107446]
[1764865327241,0.06057,93053.0,93052.0,0.0713446]
[1764865327441,0.06057,93053.0,93052.0,0.0723446]
[1764865328938,0.06057,93053.0,93052.0,0.002]
[1764865329542,0.0334,93053.0,93052.0,0.0616]
[1764865329945,0.004,93053.0,93052.0,0.0616]
[1764865330145,0.06057,93053.0,93052.0,0.0616]
[1764865330346,0.02689728,93053.0,93052.0,0.0616]
[1764865331044,0.004,93053.0,93052.0,0.0616]
[1764865331245,0.02689832,93053.0,93052.0,0.0616]
[1764865331950,0.004,93053.0,93052.0,0.0616]
[1764865332250,0.06057,93053.0,93052.0,0.03184]
[1764865332548,0.08347747,93053.0,93052.0,0.03184]
[1764865332740,0.08347747,93053.0,93052.0,0.002]
[1764865333648,0.08347747,93053.0,93052.0,0.0016321]
[1764865335045,0.14138506,93053.0,93052.0,0.0016321]
[1764865335651,0.08347747,93053.0,93052.0,0.0016321]
[1764865336754,0.14138866,93053.0,93052.0,0.0016321]
[1764865337046,0.08347747,93053.0,93052.0,0.0016321]
[1764865337442,0.08347747,93053.0,93052.0,0.00048095]
[1764865338244,0.0673147,93052.0,93051.0,1.2e-06]
[1764865338445,0.0673153,93047.0,93046.0,0.00026869]
[1764865338646,0.09022277,93047.0,93046.0,0.00026869]
[1764865339248,0.14813476,93047.0,93046.0,0.00026869]
[1764865339452,0.09022277,93047.0,93046.0,0.00026869]
[1764865339954,0.09222277,93047.0,93046.0,0.00126869]
[1764865340162,0.09222277,93047.0,93046.0,0.00226869]
[1764865340453,0.15013476,93047.0,93046.0,0.00226869]
[1764865341056,0.09222277,93047.0,93046.0,0.03210869]
[1764865341256,0.15013476,93047.0,93046.0,0.03210869]
[1764865341455,0.15013476,93047.0,93046.0,0.00226869]
[1764865341755,0.15413476,93047.0,93046.0,0.00226869]
[1764865341953,0.09622277,93047.0,93046.0,0.00226869]
[1764865343550,0.15413476,93047.0,93046.0,0.03210869]
[1764865343859,0.09622277,93047.0,93046.0,0.06186869]
[1764865344460,0.02890747,93047.0,93046.0,0.06186869]
[1764865344662,0.08547747,93047.0,93046.0,0.00226869]
[1764865344958,0.08547747,93047.0,93046.0,0.06186869]
[1764865345346,0.08547747,93047.0,93046.0,0.00226869]
[1764865346358,0.08547747,93047.0,93034.0,8.554e-05]
[1764865346359,0.0673167,93035.0,93034.0,8.554e-05]
[1764865346659,0.09022417,93035.0,93034.0,8.554e-05]
[1764865346859,0.02717,93018.0,93017.0,0.0703487]
[1764865347059,0.07947747,93018.0,93017.0,0.0703487]
[1764865347462,0.05230747,93018.0,93017.0,0.0703487]
[1764865347862,0.05239596,93018.0,93017.0,0.0703487]
[1764865348962,0.05239596,93018.0,93017.0,0.0733487]
[1764865349364,0.08056596,93018.0,93017.0,0.0763487]
[1764865349863,0.00108849,93018.0,93017.0,0.0763487]
[1764865350961,0.0001612,93027.0,93026.0,0.0703477]
[1764865351160,0.0001612,93027.0,93026.0,0.07276772]
[1764865351762,0.0673153,93047.0,93046.0,0.02976]
[1764865351966,0.09015231,93047.0,93046.0,0.0596]
[1764865352466,0.07940701,93047.0,93046.0,0.0596]
[1764865352657,0.09015231,93047.0,93046.0,0.0596]
[1764865353055,0.09715231,93047.0,93046.0,0.0606]
[1764865353457,0.02983701,93047.0,93046.0,0.0606]
[1764865353967,0.02983701,93047.0,93046.0,0.0616]
[1764865355867,0.00646881,93047.0,93046.0,0.0616]
[1764865356271,0.03535881,93047.0,93046.0,0.0616]
[1764865356563,0.06395881,93047.0,93046.0,0.0616]
[1764865356757,0.03535881,93047.0,93046.0,0.0616]
[1764865357168,0.06395881,93047.0,93046.0,0.0616]
[1764865357361,0.06395881,93047.0,93046.0,0.002]
[1764865357770,0.06395881,93047.0,93046.0,0.03097]
[1764865359364,0.06395881,93047.0,93046.0,0.05891]
[1764865362170,0.00646881,93047.0,93046.0,0.05891]
[1764865362667,0.06334881,93047.0,93046.0,0.05891]
[1764865362873,0.06334881,93047.0,93046.0,0.002]
[1764865366675,0.06334881,93047.0,93046.0,0.06054]
[1764865367973,0.08611688,93047.0,93046.0,0.06054]
[1764865368176,0.08611688,93047.0,93046.0,0.03122]
[1764865370070,0.08611688,93047.0,93046.0,0.002]
[1764865370584,0.02923688,93047.0,93046.0,0.06054]
[1764865370771,0.08611688,93047.0,93046.0,0.06054]
[1764865374881,0.02923688,93047.0,93046.0,0.06054]
[1764865375681,0.08611688,93047.0,93046.0,0.06054]
[1764865376777,0.08611688,93047.0,93046.0,0.002]
[1764865378579,0.0676263,93038.0,93037.0,0.0001612]
[1764865378778,0.09039437,93038.0,93037.0,0.0001612]
[1764865379687,0.09039437,93038.0,93037.0,0.0021612]
[1764865380483,0.0902828,93038.0,93037.0,0.0021612]
[1764865380682,0.0942828,93038.0,93037.0,0.0031612]
[1764865380985,0.0676286,93018.0,93017.0,0.05854]
[1764865381383,0.09027959,93018.0,93017.0,0.05854]
[1764865381581,0.07953099,93018.0,93017.0,0.05854]
[1764865381784,0.0001612,93027.0,93026.0,0.02922]
[1764865381974,0.02281419,93027.0,93026.0,0.05854]
[1764865382179,0.07969419,93027.0,93026.0,0.05854]
[1764865382988,0.05688,93018.0,93017.0,0.06154]
[1764865383189,0.05688,93018.0,93017.0,0.03222]
[1764865383378,0.07952101,93018.0,93017.0,0.003]
[1764865383583,0.05688,93014.0,93013.0,0.0398738]
[1764865383782,0.07952101,93014.0,93013.0,0.02922]
[1764865383983,0.09027011,93014.0,93013.0,0.05913]
[1764865384381,0.09027011,93014.0,93013.0,0.02922]
[1764865384581,0.06237011,93014.0,93013.0,0.05913]
[1764865384783,0.07894101,93014.0,93013.0,0.05913]
[1764865385189,0.07994101,93014.0,93013.0,0.06213]
[1764865385991,0.09069011,93014.0,93013.0,0.06313]
[1764865386193,0.0680491,93014.0,93013.0,0.06313]
[1764865386496,0.09066896,93014.0,93013.0,0.004]
[1764865386797,0.09066896,93014.0,93008.0,0.0001612]
[1764865386798,0.0670497,93009.0,93008.0,0.0001612]
[1764865386990,0.08966956,93009.0,93008.0,0.0001612]
[1764865387589,0.0563,93007.0,93006.0,0.0002688]
[1764865387792,0.07891986,93007.0,93006.0,0.0002688]
[1764865388509,0.02261986,93007.0,93006.0,0.06066882]
[1764865388794,0.07891986,93007.0,93006.0,0.0582488]
[1764865388995,0.07891986,93007.0,93006.0,0.0012688]
[1764865389191,0.07888869,93007.0,93006.0,0.0012688]
[1764865389998,0.08388869,93007.0,93006.0,0.0022688]
[1764865390195,0.0613,93007.0,93006.0,0.0022688]
[1764865391195,0.0613,93007.0,93006.0,0.0303388]
[1764865391792,0.0613,93007.0,93006.0,0.0022688]
[1764865391994,0.08388028,93007.0,93006.0,0.0022688]
[1764865392401,0.08388028,93007.0,93006.0,0.0602488]
[1764865392793,0.005,93007.0,93006.0,0.0602488]
[1764865394901,0.0447299,93007.0,93006.0,0.0602488]
[1764865395102,0.0720499,93007.0,93006.0,0.0022688]
[1764865395307,0.0720499,93007.0,93006.0,0.0303388]
[1764865395806,0.0720499,93007.0,93006.0,0.0022688]
[1764865397293,0.09462374,93007.0,93006.0,0.0022688]
[1764865397506,0.0720499,93007.0,93006.0,0.0022688]
[1764865397898,0.09462374,93007.0,93006.0,0.0022688]
[1764865399104,0.09462374,93007.0,93006.0,0.0303388]
[1764865399299,0.0157499,93007.0,93006.0,0.0602488]
[1764865399499,0.0720499,93007.0,93006.0,0.0303388]
[1764865399811,0.09462433,93007.0,93006.0,0.0022688]
[1764865402906,0.09462433,93007.0,93006.0,0.0602488]
[1764865403106,0.09502576,93007.0,93006.0,0.0602488]
[1764865404210,0.005,93007.0,93006.0,0.0602488]
[1764865404409,0.02798645,93007.0,93006.0,0.0602488]
[1764865405108,0.05696645,93007.0,93006.0,0.0602488]
[1764865405407,0.08428645,93007.0,93006.0,0.0602488]
[1764865405914,0.08428645,93007.0,93006.0,0.0022688]
[1764865408803,0.0563,92998.0,92997.0,0.00010763]
[1764865409009,0.07928645,92998.0,92997.0,0.00010763]
[1764865409317,0.09003735,92998.0,92997.0,0.00010763]
[1764865410219,0.02298645,92998.0,92997.0,0.06350765]
[1764865410408,0.02698645,92998.0,92997.0,0.06350765]
[1764865412013,0.004,92998.0,92997.0,0.06350765]
[1764865414511,0.00016129,93007.0,92997.0,0.06350765]
[1764865414512,0.00016129,93007.0,93006.0,0.06838]
[1764865414818,0.05798389,93022.0,93021.0,0.0683783]
[1764865415012,0.0107481,93023.0,93021.0,0.0683783]
[1764865415013,0.0107481,93023.0,93022.0,0.05763]
[1764865415210,0.08768389,93025.0,93024.0,0.05763]
[1764865415410,0.05798389,93034.0,93033.0,0.05763]
[1764865415717,0.0297,93034.0,93033.0,0.07079692]
[1764865415917,0.05876,93034.0,93033.0,0.06005002]
[1764865416511,0.05876,93034.0,93033.0,0.06205002]
[1764865416512,0.07776,93034.0,93033.0,0.06205002]
[1764865417005,0.05876,93034.0,93033.0,0.00342002]
[1764865417211,0.06876,93034.0,93033.0,0.03467002]
[1764865417412,0.01,93034.0,93033.0,0.06305002]
[1764865418720,0.01,93034.0,93033.0,0.06205002]
[1764865419117,0.0795068,93034.0,93033.0,0.002]
[1764865419622,0.0695078,93025.0,93024.0,0.00016129]
[1764865419923,0.0695078,93025.0,93024.0,0.00258131]
[1764865420119,0.0695078,93025.0,93024.0,0.00016129]
[1764865420623,0.0695078,93025.0,93024.0,0.00258131]
[1764865421031,0.0695078,93025.0,93024.0,0.00016129]
[1764865421723,0.0705078,93025.0,93024.0,0.00016129]
[1764865422122,0.0845078,93025.0,93024.0,0.00216129]
[1764865422520,0.0107478,93025.0,93024.0,0.05717129]
[1764865422725,0.0257478,93025.0,93024.0,0.05917129]
[1764865422919,0.0552278,93025.0,93024.0,0.05917129]
[1764865423120,0.0836278,93025.0,93024.0,0.05917129]
[1764865423326,0.0696278,93025.0,93024.0,0.00016129]
[1764865423522,0.0836278,93025.0,93024.0,0.00458131]
[1764865423727,0.0836278,93025.0,93024.0,0.00216129]
[1764865423924,0.0696278,93025.0,93024.0,0.00016129]
[1764865424123,0.0796278,93025.0,93024.0,0.00216129]
[1764865424521,0.0686303,93004.0,93003.0,0.029]
[1764865424922,0.05788,93004.0,93003.0,0.029]
[1764865425233,0.05788,93004.0,93003.0,0.05701]
[1764865425822,0.02948,93010.0,93003.0,0.001]
[1764865426127,0.02948,93010.0,93009.0,0.07017972]
[1764865426320,0.05788,93010.0,93009.0,0.07017972]
[1764865426521,0.07491,93010.0,93009.0,0.07017972]
[1764865426928,0.07891,93010.0,93009.0,0.07017972]
[1764865428422,0.07491,93010.0,93009.0,0.07017972]
[1764865428625,0.08091,93010.0,93009.0,0.07117972]
[1764865429230,0.08091,93010.0,93009.0,0.07217972]
[1764865429934,0.06388,93010.0,93009.0,0.07217972]
[1764865430632,0.006,93010.0,93009.0,0.07217972]
[1764865431132,0.05798389,93037.0,93009.0,0.07217972]
[1764865431133,0.0107474,93029.0,93028.0,0.0677575]
[1764865431330,0.0402274,93029.0,93028.0,0.0677575]
[1764865431525,0.06312948,93029.0,93028.0,0.0677575]
[1764865432336,0.06512948,93029.0,93028.0,0.0677575]
[1764865432636,0.08112948,93029.0,93028.0,0.0697575]
[1764865432837,0.10952948,93029.0,93028.0,0.0697575]
[1764865433135,0.09352948,93029.0,93028.0,0.0677575]
[1764865433336,0.10452948,93029.0,93028.0,0.0697575]
[1764865434134,0.03390208,93029.0,93028.0,0.0697575]
[1764865434931,0.03390208,93029.0,93028.0,0.0677575]
[1764865434932,0.02290208,93029.0,93028.0,0.0677575]
[1764865435137,0.006,93029.0,93028.0,0.0687575]
[1764865435532,0.00016129,93038.0,93037.0,0.0677564]
[1764865435730,0.00016129,93038.0,93037.0,0.07017642]
[1764865435931,0.00026869,93046.0,93045.0,0.0677555]
[1764865436126,0.00026869,93046.0,93045.0,0.07017552]
[1764865436331,0.02317517,93046.0,93045.0,0.07017552]
[1764865436637,0.05265517,93046.0,93045.0,0.08125576]
[1764865437133,0.08105517,93046.0,93045.0,0.07051026]
[1764865437323,0.08105517,93046.0,93045.0,0.00242002]
[1764865437527,0.05788,93043.0,93042.0,0.0107458]
[1764865437727,0.08078648,93043.0,93042.0,0.0107458]
[1764865438136,0.02290648,93043.0,93042.0,0.07845388]
[1764865438330,0.00026869,93046.0,93042.0,0.07845388]
[1764865438530,0.00026869,93046.0,93045.0,0.07117552]
[1764865438531,0.00626869,93046.0,93045.0,0.07117552]
[1764865439237,0.00026869,93046.0,93045.0,0.07017552]
[1764865439936,0.00126869,93046.0,93045.0,0.07117552]
[1764865440136,0.00016129,93055.0,93054.0,0.0677545]
[1764865440334,0.00016129,93055.0,93054.0,0.07017452]
[1764865440537,0.05798389,93079.0,93070.0,0.0107425]
[1764865440840,0.01703,93080.0,93070.0,0.0677525]
[1764865440841,0.05788,93071.0,93070.0,0.0677525]
[1764865441031,0.08077706,93071.0,93070.0,0.0677525]
[1764865441433,0.02289706,93071.0,93070.0,0.0853325]
[1764865441843,0.0001612,93080.0,93079.0,0.0677516]
[1764865442841,0.00026857,93086.0,93085.0,0.0677509]
[1764865443043,0.02948,93118.0,93117.0,0.05701]
[1764865443247,0.0806972,93118.0,93117.0,0.05701]
[1764865443538,0.05788,93118.0,93117.0,0.06797213]
[1764865443743,0.0107359,93129.0,93118.0,0.0107371]
[1764865443948,0.00026845,93126.0,93125.0,0.06144002]
[1764865444236,0.01639,93144.0,93125.0,0.07217632]
[1764865444439,0.01639,93144.0,93125.0,0.00242002]
[1764865444643,0.01639,93144.0,93136.0,0.0107349]
[1764865444841,0.05834,93144.0,93143.0,0.00242002]
[1764865445142,0.05834,93144.0,93143.0,0.06144002]
[1764865445536,0.05834,93144.0,93143.0,0.03193002]
[1764865445742,0.02924058,93153.0,93152.0,0.02951]
[1764865445927,0.00016058,93153.0,93152.0,0.05902]
[1764865446239,0.02924058,93153.0,93152.0,0.05902]
[1764865446436,0.00016058,93153.0,93152.0,0.05902]
[1764865448036,0.00016058,93153.0,93152.0,0.0697532]
[1764865448336,0.01516058,93153.0,93152.0,0.0717532]
[1764865448539,0.01516058,93153.0,93152.0,0.06102]
[1764865448849,0.01516058,93153.0,93152.0,0.05902]
[1764865448850,0.03024058,93153.0,93152.0,0.05902]
[1764865449929,0.05950058,93153.0,93140.0,0.0107344]
[1764865450137,0.05950058,93153.0,93130.0,0.2167336]
[1764865450443,0.05950058,93153.0,93152.0,0.03051]
[1764865450646,0.05950058,93153.0,93152.0,0.06002]
[1764865450943,0.03024058,93153.0,93152.0,0.05902]
[1764865451138,0.05950058,93153.0,93152.0,0.05902]
[1764865451544,0.00116058,93153.0,93152.0,0.05902]
[1764865451945,0.00016058,93153.0,93152.0,0.06002]
[1764865452539,0.02908,93168.0,93167.0,0.05902]
[1764865453343,0.02908,93168.0,93167.0,0.06987153]
[1764865454541,0.05834,93168.0,93167.0,0.06987153]
[1764865454743,0.02908,93168.0,93167.0,0.06987153]
[1764865455133,0.0107303,93177.0,93167.0,0.01085153]
[1764865455335,0.10576,93185.0,93167.0,0.01085153]
[1764865455336,0.13484,93185.0,93184.0,0.05902]
[1764865455542,0.1641,93185.0,93184.0,0.05902]
[1764865455743,0.05834,93185.0,93184.0,0.05902]
[1764865455946,0.0107285,93193.0,93188.0,0.05902]
[1764865456243,0.05834,93182.0,93181.0,0.00016103]
[1764865456442,0.002,93185.0,93184.0,0.05902]
[1764865457041,0.03108,93185.0,93184.0,0.05902]
[1764865457436,0.06034,93185.0,93184.0,0.05902]
[1764865457638,0.02908,93185.0,93184.0,0.05902]
[1764865457844,0.0107293,93186.0,93181.0,0.00016103]
[1764865457845,0.0398093,93186.0,93185.0,0.05902]
[1764865458042,0.0690697,93182.0,93181.0,0.00016103]
[1764865458237,0.0690697,93182.0,93181.0,0.00258105]
[1764865458644,0.05834,93182.0,93181.0,0.00258105]
[1764865458848,0.01,93185.0,93181.0,0.00258105]
[1764865458849,0.03908,93185.0,93184.0,0.05902]
[1764865459039,0.03908,93185.0,93184.0,0.06144002]
[1764865459240,0.02908,93185.0,93184.0,0.06144002]
[1764865459435,0.03108,93185.0,93184.0,0.06144002]
[1764865459641,0.06034,93185.0,93184.0,0.06144002]
[1764865460239,0.05834,93182.0,93181.0,0.06018103]
[1764865460441,0.05834,93182.0,93181.0,0.07091083]
[1764865460842,0.05834,93182.0,93181.0,0.06018103]
[1764865461049,0.0690697,93182.0,93181.0,0.06018103]
[1764865461549,0.05834,93182.0,93181.0,0.05918103]
[1764865461938,0.02908,93182.0,93181.0,0.05918103]
[1764865462144,0.01,93185.0,93184.0,0.05902]
[1764865462346,0.01,93185.0,93184.0,0.06144002]
[1764865462549,0.0690689,93189.0,93188.0,0.02951]
[1764865462749,0.05834,93196.0,93195.0,0.05902]
[1764865462943,0.02908,93196.0,93195.0,0.0697482]
[1764865463145,0.0690674,93203.0,93202.0,0.02951]
[1764865463340,0.0690674,93203.0,93202.0,0.0119064]
[1764865463544,0.05834,93182.0,93181.0,0.06018103]
[1764865463759,0.05834,93182.0,93181.0,0.05918103]
[1764865463949,0.01,93185.0,93184.0,0.0707495]
[1764865464151,0.03908,93185.0,93184.0,0.0707495]
[1764865464648,0.06834,93185.0,93184.0,0.0412395]
[1764865464843,0.06834,93185.0,93184.0,0.06002]
[1764865465049,0.03908,93185.0,93184.0,0.06002]
[1764865465445,0.02908,93185.0,93184.0,0.05902]
[1764865465646,0.02908,93185.0,93181.0,0.00016103]
[1764865465647,0.07473,93192.0,93191.0,0.02951]
[1764865465846,0.05834,93188.0,93187.0,0.010729]
[1764865466046,0.07473,93192.0,93191.0,0.05902]
[1764865467549,0.05834,93192.0,93191.0,0.05902]
[1764865468759,0.06734,93192.0,93191.0,0.06002]
[1764865469252,0.06034,93192.0,93191.0,0.05902]
[1764865469447,0.05934,93192.0,93191.0,0.05902]
[1764865469645,0.07721334,93233.0,93191.0,0.05902]
[1764865469646,0.05798389,93226.0,93205.0,0.069747]
[1764865469859,0.01639,93230.0,93229.0,0.05902]
[1764865469860,0.04547,93230.0,93229.0,0.05902]
[1764865470158,0.01639,93240.0,93216.0,0.2167336]
[1764865470159,0.07473,93240.0,93220.0,0.01488]
[1764865470653,0.07473,93240.0,93210.0,0.01488]
[1764865470857,0.02908,93224.0,93223.0,0.069745]
[1764865471060,0.01639,93240.0,93227.0,0.0107245]
[1764865471260,0.00026811,93246.0,93231.0,0.0107241]
[1764865471454,0.05834,93232.0,93231.0,0.05902]
[1764865471754,0.05860811,93246.0,93232.0,0.0107239]
[1764865472256,0.05860811,93246.0,93236.0,0.0107234]
[1764865472455,0.05834,93230.0,93229.0,0.02967094]
[1764865472658,0.05834,93230.0,93229.0,0.00258096]
[1764865473156,0.03108,93232.0,93231.0,0.05902]
[1764865473357,0.05834,93232.0,93231.0,0.03193002]
[1764865473552,0.05834,93232.0,93231.0,0.06144002]
[1764865474056,0.05834,93232.0,93231.0,0.03230002]
[1764865474254,0.05834,93232.0,93231.0,0.00242002]
[1764865474555,0.06977,93230.0,93229.0,0.00116094]
[1764865474860,0.06977,93230.0,93229.0,0.06062094]
[1764865475156,0.06777,93232.0,93231.0,0.06046]
[1764865475351,0.06777,93232.0,93231.0,0.001]
[1764865475653,0.05677,93230.0,93229.0,0.00016094]
[1764865475850,0.06777,93230.0,93229.0,0.00116094]
[1764865476245,0.09024507,93230.0,93229.0,0.00116094]
[1764865476445,0.06777,93230.0,93229.0,0.00116094]
[1764865476645,0.06577,93230.0,93229.0,0.00116094]
[1764865476958,0.05677,93213.0,93202.0,0.0107274]
[1764865477157,0.07339,93203.0,93202.0,0.0406074]
[1764865477454,0.07339,93203.0,93202.0,0.02988]
[1764865477648,0.07339,93203.0,93201.0,0.0107274]
[1764865477956,0.07339,93203.0,93202.0,0.00242002]
[1764865478256,0.07339,93203.0,93202.0,0.003]
[1764865478654,0.07339,93203.0,93202.0,0.0107274]
[1764865478959,0.05677,93202.0,93201.0,0.004]